bitfinex/quotes_SOLUSD_20250829
["timestamp","ask_amount","ask_price","bid_price","bid_amount"]
[1756453243229,0.67,209.5,209.46,46.87413352]
[1756453243230,3.87310457,209.5,209.46,46.87413352]
[1756453243741,0.67,209.49,209.44,4.80460516]
[1756453243940,3.20310457,209.49,209.45,19.17376515]
[1756453244144,3.20310457,209.49,209.46,42.08]
[1756453244446,3.87310457,209.49,209.46,42.08]
[1756453245254,3.87310457,209.49,209.46,46.85417588]
[1756453245436,3.87310457,209.49,209.46,42.08]
[1756453246235,3.20310457,209.49,209.46,42.08]
[1756453246435,13.59559401,209.5,209.46,42.08]
[1756453246648,3.20310457,209.49,209.46,42.08]
[1756453247737,3.87310457,209.49,209.44,19.20376515]
[1756453248047,33.43935916,209.48,209.45,42.06]
[1756453248241,3.87310457,209.47,209.45,42.06]
[1756453248826,19.84376515,209.47,209.45,42.06]
[1756453249646,0.67,209.47,209.45,42.06]
[1756453249856,3.87533897,209.47,209.45,42.06]
[1756453250858,3.20533897,209.47,209.45,42.06]
[1756453251336,13.59559401,209.52,209.46,19.17376515]
[1756453251682,3.20499358,209.51,209.46,19.17376515]
[1756453252334,3.20499358,209.51,209.45,47.44436568]
[1756453252335,3.20499358,209.51,209.49,19.17376515]
[1756453252540,3.20499358,209.54,209.5,42.04]
[1756453252763,3.20499358,209.54,209.51,42.04]
[1756453253056,1e-08,209.56,209.51,46.81283754]
[1756453253254,3.20369619,209.56,209.52,19.78376515]
[1756453253558,3.20369619,209.56,209.51,46.81283754]
[1756453253559,1e-08,209.56,209.53,19.78376515]
[1756453253751,1e-08,209.56,209.55,19.17376515]
[1756453254064,0.06,209.59,209.58,26.0]
[1756453254253,0.06,209.59,209.58,87.80376515]
[1756453254960,0.06,209.59,209.58,92.5752128]
[1756453255634,0.06,209.59,209.53,0.61]
[1756453255835,0.06,209.59,209.54,45.17376515]
[1756453256058,19.23376515,209.59,209.55,42.0]
[1756453256246,19.17376515,209.57,209.55,42.0]
[1756453256444,19.84376515,209.56,209.55,42.0]
[1756453256756,19.84376515,209.56,209.51,4.77303481]
[1756453256757,19.84376515,209.56,209.53,42.0]
[1756453257054,19.17376515,209.54,209.49,4.7733072]
[1756453257262,0.67,209.54,209.5,42.0]
[1756453257861,19.17376515,209.55,209.5,42.0]
[1756453258157,0.67,209.55,209.5,61.17376515]
[1756453258335,19.84376515,209.54,209.5,42.0]
[1756453258536,0.67,209.53,209.47,45.17376515]
[1756453258762,19.84376515,209.53,209.48,41.98]
[1756453258967,0.67,209.52,209.48,41.98]
[1756453259261,19.17376515,209.52,209.48,41.98]
[1756453259556,19.17376515,209.55,209.48,61.15376515]
[1756453259951,19.17376515,209.55,209.49,19.17376515]
[1756453260137,19.84376515,209.56,209.49,19.17376515]
[1756453260338,3.2014446,209.55,209.5,4.77326968]
[1756453260537,19.17376515,209.52,209.46,0.03]
[1756453260756,3.20202292,209.51,209.46,61.16376515]
[1756453260963,22.37578807,209.51,209.46,46.76418047]
[1756453261167,23.05578807,209.5,209.46,41.99]
[1756453261369,0.68,209.54,209.47,41.96]
[1756453261849,19.85376515,209.54,209.47,41.96]
[1756453262448,3.20233796,209.53,209.47,41.96]
[1756453262654,3.20233796,209.53,209.48,4.77372541]
[1756453262860,0.68,209.53,209.48,4.77372541]
[1756453263042,3.88233796,209.53,209.48,4.77372541]
[1756453263962,0.68,209.53,209.48,4.77372541]
[1756453264264,3.88233796,209.53,209.48,4.77372541]
[1756453264657,23.05610311,209.53,209.48,4.77372541]
[1756453264864,19.85376515,209.53,209.48,4.77372541]
[1756453265365,19.85376515,209.53,209.49,41.94]
[1756453265944,0.68,209.52,209.49,41.94]
[1756453266266,0.68,209.51,209.49,41.94]
[1756453267446,0.68,209.51,209.48,46.69369389]
[1756453267856,19.17376515,209.52,209.48,46.69369389]
[1756453268067,19.85376515,209.52,209.48,46.69369389]
[1756453268658,0.68,209.52,209.48,46.69369389]
[1756453268857,19.85376515,209.52,209.48,46.69369389]
[1756453270645,19.17376515,209.52,209.46,19.20376515]
[1756453270856,26.0,209.51,209.47,41.9]
[1756453271168,45.85376515,209.51,209.47,41.9]
[1756453271766,45.17376515,209.51,209.47,41.9]
[1756453271963,45.85376515,209.51,209.47,41.9]
[1756453272162,0.68,209.5,209.47,41.9]
[1756453272365,19.85376515,209.5,209.47,41.9]
[1756453274173,0.68,209.49,209.47,41.9]
[1756453274466,26.68,209.54,209.47,41.9]
[1756453274671,3.20585239,209.53,209.48,19.17376515]
[1756453275563,3.20585239,209.53,209.48,23.94739868]
[1756453275754,3.20585239,209.55,209.5,19.17376515]
[1756453275959,3.20585239,209.55,209.51,42.47]
[1756453276159,3.20585239,209.55,209.52,19.17376515]
[1756453276470,3.20585239,209.55,209.52,19.78376515]
[1756453276851,3.20585239,209.55,209.52,19.17376515]
[1756453277345,3.20585239,209.55,209.51,46.63283411]
[1756453277555,3.20585239,209.55,209.51,65.80659926]
[1756453277970,3.20585239,209.55,209.54,19.17376515]
[1756453278171,0.06,209.58,209.54,61.03376515]
[1756453278372,0.06,209.56,209.54,61.64376515]
[1756453278892,3.26847801,209.58,209.57,26.0]
[1756453279171,0.06,209.58,209.57,87.01376515]
[1756453279359,0.06,209.58,209.57,87.62376515]
[1756453280274,0.06,209.58,209.57,73.22167533]
[1756453280476,0.06,209.58,209.57,92.39544048]
[1756453280782,1e-08,209.58,209.57,73.22167533]
[1756453281373,1e-08,209.58,209.57,92.39544048]
[1756453282259,0.06,209.61,209.57,104.32462881]
[1756453282455,0.06,209.61,209.6,45.17376515]
[1756453282658,0.06,209.61,209.6,86.97376515]
[1756453282856,0.06,209.61,209.6,87.58376515]
[1756453283060,0.06,209.61,209.6,89.49549115]
[1756453283277,0.1,209.63,209.6,89.49549115]
[1756453283481,0.1,209.63,209.62,19.17376515]
[1756453283482,1e-08,209.63,209.62,19.17376515]
[1756453283694,1e-08,209.63,209.62,60.97376515]
[1756453283978,1e-08,209.63,209.62,61.58376515]
[1756453284153,1e-08,209.63,209.62,47.18053716]
[1756453284354,1e-08,209.63,209.62,23.94430231]
[1756453284661,1e-08,209.63,209.62,65.74430231]
[1756453284861,1e-08,209.63,209.62,23.94430231]
[1756453285071,1e-08,209.63,209.62,65.74430231]
[1756453285276,1e-08,209.63,209.62,66.35430231]
[1756453285659,1e-08,209.63,209.62,79.94989632]
[1756453285859,1e-08,209.63,209.62,66.35430231]
[1756453286283,1e-08,209.63,209.62,79.94989632]
[1756453286584,1e-08,209.63,209.62,66.35430231]
[1756453287170,0.1,209.71,209.62,115.72892503]
[1756453287499,0.1,209.71,209.7,45.17376515]
[1756453287697,0.1,209.71,209.7,86.93376515]
[1756453288170,0.1,209.71,209.7,92.31248236]
[1756453288496,0.1,209.71,209.7,91.70248236]
[1756453288699,1e-08,209.71,209.7,65.70248236]
[1756453288994,1e-08,209.71,209.7,85.96311923]
[1756453289568,0.1,209.77,209.73,26.0]
[1756453289920,0.1,209.77,209.76,45.17376515]
[1756453290066,0.1,209.77,209.76,86.93376515]
[1756453290264,0.1,209.77,209.76,91.70111831]
[1756453290470,0.78,209.83,209.76,91.70111831]
[1756453290471,0.1,209.83,209.8,26.0]
[1756453290674,0.1,209.83,209.81,60.91376515]
[1756453290976,0.1,209.83,209.76,18.59563707]
[1756453290977,0.1,209.83,209.78,0.61]
[1756453291175,0.1,209.83,209.79,67.74]
[1756453291498,0.1,209.83,209.81,19.17376515]
[1756453292184,0.1,209.83,209.82,49.93975504]
[1756453292369,0.1,209.83,209.82,92.74635402]
[1756453293191,1e-08,209.85,209.82,106.34194803]
[1756453293371,1e-08,209.85,209.84,32.76935916]
[1756453293571,1e-08,209.88,209.87,39.59559401]
[1756453293783,0.1,210.03,209.95,26.0]
[1756453293991,0.1,210.03,210.02,19.17376515]
[1756453293992,0.79,210.03,210.02,19.17376515]
[1756453294194,0.79,210.03,210.02,60.89376515]
[1756453294195,0.1,210.03,210.02,60.89376515]
[1756453294881,0.1,210.03,210.02,41.72]
[1756453294882,0.79,210.03,210.02,41.72]
[1756453295103,0.1,210.03,210.02,60.89376515]
[1756453295397,0.1,210.03,210.02,60.87376515]
[1756453295570,0.1,210.03,210.02,19.17376515]
[1756453295775,0.1,210.03,210.02,60.87376515]
[1756453296091,0.1,210.03,210.02,86.87376515]
[1756453296902,0.1,210.03,210.02,61.95991027]
[1756453297296,0.06,210.11,210.06,39.59559401]
[1756453297498,0.06,210.11,210.1,45.17376515]
[1756453298005,0.06,210.11,210.1,86.85376515]
[1756453299114,0.06,210.11,210.1,86.83376515]
[1756453299411,0.06,210.11,210.07,30.76011009]
[1756453299611,0.06,210.11,210.1,45.17376515]
[1756453300111,0.06,210.11,210.1,86.83376515]
[1756453300315,0.06,210.11,210.1,92.10340341]
[1756453300819,0.06,210.11,210.1,91.59340341]
[1756453301116,0.06,210.11,210.1,91.57340341]
[1756453301805,0.69,210.24,210.22,19.17376515]
[1756453302013,0.69,210.27,210.23,60.81376515]
[1756453302192,0.69,210.26,210.24,19.17376515]
[1756453302394,19.17376515,210.29,210.2,26.0]
[1756453302595,19.17376515,210.24,210.21,41.64]
[1756453302802,19.17376515,210.22,210.11,4.75941173]
[1756453303000,0.69,210.21,210.15,19.17376515]
[1756453303200,0.69,210.2,210.16,60.81376515]
[1756453303413,0.69,210.19,210.17,41.64]
[1756453303627,0.69,210.18,210.17,60.81376515]
[1756453303802,4.75500464,210.31,210.2,26.0]
[1756453303998,0.69,210.25,210.21,60.79376515]
[1756453304195,0.69,210.24,210.22,41.62]
[1756453304493,19.17376515,210.27,210.22,41.62]
[1756453304494,0.69,210.23,210.22,41.62]
[1756453304704,19.86376515,210.23,210.19,41.62]
[1756453304899,19.17376515,210.21,210.19,41.62]
[1756453305102,0.69,210.2,210.17,41.62]
[1756453305316,0.69,210.19,210.17,41.62]
[1756453305622,0.69,210.18,210.17,41.62]
[1756453306626,0.69,210.18,210.04,0.51]
[1756453306795,19.17376515,210.14,210.11,26.0]
[1756453306998,19.17376515,210.12,210.03,14.307175]
[1756453307218,19.17376515,210.06,210.04,41.6]
[1756453307413,19.86376515,210.05,210.04,41.6]
[1756453307724,19.86376515,210.05,210.03,41.6]
[1756453307897,0.69,210.04,210.03,41.6]
[1756453308096,0.69,210.04,210.0,4.76187165]
[1756453308420,19.17376515,210.01,209.95,23.93680396]
[1756453308625,19.17376515,210.01,209.96,41.6]
[1756453308830,19.17376515,210.01,209.99,26.0]
[1756453309027,39.59559401,210.11,209.95,4.76303881]
[1756453309028,19.86376515,210.0,209.95,4.76303881]
[1756453309232,19.17376515,210.01,209.96,41.6]
[1756453309431,13.59559401,210.09,209.98,19.17376515]
[1756453309631,26.0,210.11,210.01,19.17376515]
[1756453309810,26.0,210.11,210.02,41.6]
[1756453309811,19.17376515,210.06,210.02,41.6]
[1756453310006,0.69,210.08,210.03,4.76122458]
[1756453310224,19.17376515,210.04,210.03,41.6]
[1756453310426,19.86376515,210.04,209.99,41.6]
[1756453310614,19.17376515,210.0,209.97,41.6]
[1756453310814,19.86376515,209.99,209.9,11.91011712]
[1756453311043,19.86376515,209.99,209.93,19.17376515]
[1756453311206,19.86376515,209.99,209.97,26.0]
[1756453311517,41.6,210.19,209.97,26.0]
[1756453311518,0.69,210.03,209.98,67.6]
[1756453311918,19.86376515,210.02,209.98,67.6]
[1756453312125,19.17376515,210.0,209.91,11.90986613]
[1756453312336,26.0,210.1,209.91,11.90986613]
[1756453312337,19.17376515,209.97,209.92,46.36371951]
[1756453312510,0.69,209.96,209.92,46.36371951]
[1756453312910,0.69,209.99,209.94,19.17376515]
[1756453313106,19.17376515,210.02,209.96,19.17376515]
[1756453313405,19.17376515,210.02,209.97,41.6]
[1756453313612,0.69,210.01,209.97,41.6]
[1756453313810,0.69,210.0,209.97,41.6]
[1756453314214,0.69,209.99,209.97,41.6]
[1756453314531,0.75,209.99,209.97,41.6]
[1756453314732,0.06,209.99,209.97,41.6]
[1756453315036,0.69,209.98,209.97,41.6]
[1756453315229,0.69,209.98,209.97,46.36258513]
[1756453315611,0.06,209.99,209.97,65.53632719]
[1756453315940,0.06,209.99,209.97,46.36256204]
[1756453316323,0.06,209.99,209.97,46.16256204]
[1756453316836,0.06,209.99,209.98,19.68376515]
[1756453317037,0.06,209.99,209.98,19.17376515]
[1756453317923,18.35523215,210.11,209.98,19.17376515]
[1756453317924,0.69,210.13,210.0,64.3475303]
[1756453318125,0.69,210.13,210.08,19.17376515]
[1756453318318,0.69,210.13,210.09,46.35986481]
[1756453318631,19.17376515,210.14,210.09,46.35986481]
[1756453318632,0.69,210.12,210.09,46.35986481]
[1756453319134,13.59559401,210.17,210.12,26.0]
[1756453319135,0.69,210.17,210.12,26.0]
[1756453319334,0.69,210.21,210.13,41.58]
[1756453319525,0.69,210.21,210.16,26.0]
[1756453319719,19.86376515,210.21,210.17,26.0]
[1756453319950,0.69,210.2,210.18,41.58]
[1756453320121,0.69,210.2,210.12,19.17376515]
[1756453320315,0.69,210.2,210.15,19.17376515]
[1756453320510,19.86376515,210.23,210.16,60.75376515]
[1756453320715,0.69,210.23,210.17,19.17376515]
[1756453321020,0.69,210.22,210.18,41.58]
[1756453321216,13.59559401,210.18,210.08,11.89971306]
[1756453321416,19.17376515,210.14,210.11,41.58]
[1756453321617,19.86376515,210.13,210.11,41.58]
[1756453321927,0.69,210.12,210.11,41.58]
[1756453323435,0.69,210.12,210.08,4.76009139]
[1756453323742,19.17376515,210.1,210.07,26.0]
[1756453323927,19.86376515,210.1,210.09,41.58]
[1756453324136,0.69,210.1,210.09,41.58]
[1756453324434,19.86376515,210.1,210.09,41.58]
[1756453324632,0.69,210.1,210.09,41.58]
[1756453325029,4.00220215,210.23,210.12,26.0]
[1756453325252,19.86376515,210.21,210.14,19.17376515]
[1756453325740,19.17376515,210.18,210.15,41.56]
[1756453325930,19.17376515,210.19,210.15,41.56]
[1756453326136,0.69,210.18,210.16,41.56]
[1756453326343,0.69,210.18,210.17,41.56]
[1756453326543,19.86376515,210.18,210.13,4.75874252]
[1756453326751,19.86376515,210.17,210.13,4.75874252]
[1756453326925,0.69,210.16,210.14,41.56]
[1756453327130,0.69,210.16,210.15,41.56]
[1756453327331,19.86376515,210.16,210.15,41.56]
[1756453327548,0.69,210.16,210.15,41.56]
[1756453328354,0.69,210.24,210.19,4.75760026]
[1756453328526,212.6,210.37,210.19,4.75760026]
[1756453328527,19.17376515,210.27,210.2,60.73376515]
[1756453328849,0.69,210.28,210.21,19.17376515]
[1756453328850,19.86376515,210.28,210.21,19.17376515]
[1756453329927,0.69,210.28,210.22,19.17376515]
[1756453330128,0.69,210.28,210.23,41.56]
[1756453330445,0.69,210.28,210.24,4.75646879]
[1756453330644,0.69,210.28,210.24,23.93023394]
[1756453330848,13.59559401,210.29,210.24,23.93023394]
[1756453331049,0.69,210.27,210.24,23.93023394]
[1756453331435,3.14964219,210.3,210.24,23.93023394]
[1756453331436,13.59559401,210.29,210.24,33.92011451]
[1756453331635,29.16364572,210.31,210.24,33.92011451]
[1756453331832,29.16364572,210.28,210.25,41.56]
[1756453332037,0.69,210.27,210.25,41.56]
[1756453332241,3.84651771,210.27,210.25,41.56]
[1756453332559,0.69,210.27,210.25,41.56]
[1756453332853,0.69,210.27,210.25,46.31615014]
[1756453333054,3.15651771,210.29,210.25,75.47979586]
[1756453333253,3.15651771,210.3,210.25,75.47979586]
[1756453333450,0.69,210.29,210.25,75.47979586]
[1756453333752,13.59559401,210.25,210.15,0.51]
[1756453333937,13.59559401,210.25,210.03,58.12596839]
[1756453333938,13.59559401,210.23,210.17,29.16364572]
[1756453334146,42.75923973,210.23,210.17,29.16364572]
[1756453334344,3.1636662,210.22,210.17,29.16364572]
[1756453334547,3.8536662,210.22,210.18,29.16364572]
[1756453334742,3.1636662,210.22,210.19,70.70364572]
[1756453335057,0.69,210.26,210.21,29.16364572]
[1756453335243,32.32656848,210.27,210.22,41.54]
[1756453335447,0.69,210.25,210.22,41.54]
[1756453335749,3.85292276,210.25,210.22,41.54]
[1756453336151,0.69,210.25,210.22,41.54]
[1756453336333,3.85292276,210.25,210.22,41.54]
[1756453336535,3.85292276,210.24,210.16,37.89565652]
[1756453336738,0.69,210.24,210.18,29.16364572]
[1756453336956,3.85292276,210.24,210.19,41.54]
[1756453337144,4.10169547,210.23,210.19,41.54]
[1756453337343,3.16292276,210.22,210.19,41.54]
[1756453337859,0.69,210.21,210.19,41.54]
[1756453338157,3.16292276,210.23,210.19,41.54]
[1756453338342,6.57758179,210.22,210.2,41.54]
[1756453338541,3.16292276,210.21,210.2,41.54]
[1756453338850,6.577381,210.21,210.2,41.54]
[1756453339442,13.59559401,210.12,209.97,0.51]
[1756453339639,46.73404088,210.07,210.0,29.16364572]
[1756453339840,6.577381,210.06,210.02,29.16364572]
[1756453340034,3.16292276,210.05,210.03,29.16364572]
[1756453340241,18.26039516,210.07,210.03,29.16364572]
[1756453340242,3.16292276,210.06,210.03,29.16364572]
[1756453340450,3.16292276,210.05,210.02,29.16364572]
[1756453340758,3.16292276,210.06,210.01,70.70364572]
[1756453341057,29.16364572,210.04,210.01,41.54]
[1756453341261,6.5766947,210.03,210.01,41.54]
[1756453341442,3.16292276,210.03,210.01,41.54]
[1756453341763,3.16292276,210.04,210.01,70.70364572]
[1756453341968,3.16292276,210.05,210.01,41.54]
[1756453342149,3.85292276,210.05,210.01,41.54]
[1756453342344,0.69,210.05,210.01,41.54]
[1756453342536,3.85292276,210.05,210.01,41.54]
[1756453342849,3.16292276,210.05,210.01,46.30157591]
[1756453343058,0.69,210.04,210.01,46.30157591]
[1756453343363,3.16292276,210.05,210.0,41.54]
[1756453343364,13.59559401,210.02,210.0,41.54]
[1756453343556,3.16292276,210.01,210.0,41.54]
[1756453343866,3.16292276,210.03,210.0,41.54]
[1756453344046,3.16292276,210.04,210.01,29.16364572]
[1756453344239,3.16292276,210.05,210.0,41.54]
[1756453344442,3.85292276,210.06,210.0,70.70364572]
[1756453344972,3.85292276,210.06,210.01,4.76167801]
[1756453345180,29.16364572,210.04,210.0,41.54]
[1756453345359,0.69,210.04,210.0,41.54]
[1756453345561,3.8682725,210.04,210.0,46.30190333]
[1756453345852,32.34191822,210.04,209.98,29.16364572]
[1756453346066,29.16364572,210.0,209.94,29.16364572]
[1756453346277,42.75923973,210.0,209.95,41.54]
[1756453346479,13.59559401,210.0,209.95,96.70364572]
[1756453346868,13.59559401,210.0,209.95,70.70364572]
[1756453347062,13.59559401,210.03,209.96,4.76281196]
[1756453347269,13.59559401,210.01,209.96,33.92645768]
[1756453347788,13.59559401,210.01,209.96,4.76281196]
[1756453348172,13.59559401,210.01,209.98,0.03]
[1756453348686,29.85364572,210.0,209.98,0.03]
[1756453349069,0.69,210.0,209.98,0.03]
[1756453349264,13.59559401,210.01,209.98,0.03]
[1756453349774,43.44923973,210.01,209.98,0.03]
[1756453350465,13.59559401,210.02,209.98,0.03]
[1756453351267,32.67896642,210.03,209.98,0.03]
[1756453351494,0.7,210.04,209.98,23.87573072]
[1756453351686,13.59559401,210.06,210.0,19.08337241]
[1756453351886,13.59559401,210.06,209.99,60.62337241]
[1756453352686,13.59559401,210.09,209.99,41.54]
[1756453352894,19.08337241,210.02,209.98,0.03]
[1756453353072,19.08337241,209.99,209.98,0.03]
[1756453353472,19.78337241,209.99,209.98,0.03]
[1756453354181,0.7,209.99,209.98,0.03]
[1756453354899,19.78337241,209.99,209.98,0.03]
[1756453355294,19.08337241,210.0,209.98,0.03]
[1756453355486,33.37896642,209.99,209.98,0.03]
[1756453356100,13.59559401,209.98,209.96,0.03]
[1756453356295,32.67896642,209.97,209.96,0.03]
[1756453356497,33.37896642,209.97,209.89,26.0]
[1756453356690,13.59559401,209.93,209.86,19.08337241]
[1756453356888,13.59559401,209.93,209.85,19.08337241]
[1756453357197,13.59559401,209.93,209.83,31.33576276]
[1756453357513,19.08337241,209.9,209.84,41.54]
[1756453357802,32.67896642,209.91,209.84,60.62337241]
[1756453358103,19.08337241,209.9,209.84,46.30536893]
[1756453358601,19.08337241,209.87,209.81,19.08337241]
[1756453358799,19.08337241,209.88,209.82,19.08337241]
[1756453359096,19.08337241,209.87,209.81,19.08337241]
[1756453359302,19.08337241,209.87,209.82,41.54]
[1756453359512,13.59559401,209.84,209.79,0.2]
[1756453359813,19.08337241,209.8,209.79,0.2]
[1756453359982,32.67896642,209.8,209.79,0.2]
[1756453360182,33.37896642,209.8,209.79,0.2]
[1756453361397,43.60610588,209.8,209.79,0.2]
[1756453362194,14.29559401,209.8,209.79,0.2]
[1756453362502,43.60610588,209.8,209.79,0.2]
[1756453362718,13.59559401,209.8,209.79,0.2]
[1756453363083,29.31051187,209.82,209.79,0.2]
[1756453363409,0.7,209.91,209.81,29.31051187]
[1756453363616,32.46682181,209.97,209.9,29.31051187]
[1756453363793,29.31051187,209.99,209.93,29.31051187]
[1756453363994,29.31051187,210.01,209.94,29.31051187]
[1756453364310,0.7,210.02,209.96,29.31051187]
[1756453364513,29.31051187,210.01,209.95,34.0734839]
[1756453364693,0.7,210.02,209.96,29.31051187]
[1756453365034,13.59559401,210.01,209.96,29.31051187]
[1756453365210,0.7,210.02,209.96,29.31051187]
[1756453365513,30.01051187,210.02,209.96,29.31051187]
[1756453365704,13.59559401,210.01,209.96,29.31051187]
[1756453366018,13.59559401,210.01,209.93,4.76342967]
[1756453366019,13.65559401,210.01,209.93,4.76342967]
[1756453366203,13.65559401,210.01,209.96,29.31051187]
[1756453366403,19.11732552,210.01,209.95,29.31051187]
[1756453366708,13.59559401,209.99,209.93,29.31051187]
[1756453366910,29.31051187,209.97,209.88,0.57]
[1756453367099,43.60610588,209.96,209.9,29.31051187]
[1756453367302,41.54,210.0,209.86,29.31051187]
[1756453367303,13.59559401,209.92,209.86,29.31051187]
[1756453367500,42.90610588,209.92,209.85,29.31051187]
[1756453367688,29.31051187,209.91,209.85,29.31051187]
[1756453368401,34.07455894,209.91,209.85,29.31051187]
[1756453368916,4.76404707,209.91,209.85,29.31051187]
[1756453369224,13.59559401,209.92,209.88,29.31051187]
[1756453369424,0.7,209.97,209.91,29.31051187]
[1756453369617,13.59559401,209.96,209.89,0.57]
[1756453369796,13.59559401,209.96,209.92,29.31051187]
[1756453370191,13.59559401,209.97,209.92,29.31051187]
[1756453370390,4.76326569,209.94,209.89,29.31051187]
[1756453370591,5.46326569,209.94,209.89,29.31051187]
[1756453371314,29.31051187,209.93,209.87,26.0]
[1756453371509,13.59559401,209.92,209.87,29.31051187]
[1756453371703,14.29559401,209.92,209.87,29.31051187]
[1756453372013,13.59559401,209.93,209.89,29.31051187]
[1756453372924,18.35914239,209.93,209.88,29.31051187]
[1756453373222,19.05914239,209.93,209.88,29.31051187]
[1756453373915,0.7,209.92,209.88,29.31051187]
[1756453374117,0.7,209.92,209.87,29.31051187]
[1756453374618,5.46377812,209.92,209.86,29.31051187]
[1756453375395,30.01051187,209.92,209.86,29.31051187]
[1756453375812,0.7,209.92,209.87,29.31051187]
[1756453376014,18.35906256,209.94,209.87,29.31051187]
[1756453376219,47.66957443,209.94,209.87,29.31051187]
[1756453376520,13.59559401,209.92,209.87,29.31051187]
[1756453377916,13.59559401,209.92,209.84,68.11]
[1756453377917,47.66997005,209.92,209.84,68.11]
[1756453378101,29.31051187,209.91,209.85,29.31051187]
[1756453379334,48.36997005,209.92,209.86,29.31051187]
[1756453380098,3.17006929,209.91,209.86,29.31051187]
[1756453380700,32.48058116,209.91,209.85,29.31051187]
[1756453380927,29.31051187,209.91,209.85,29.31051187]
[1756453381105,3.17314197,209.9,209.85,29.31051187]
[1756453381422,3.17314197,209.9,209.84,72.87551523]
[1756453381720,3.17314197,209.9,209.84,45.67613447]
[1756453381909,3.17314197,209.9,209.84,91.96165645]
[1756453382514,3.17314197,209.9,209.84,72.85552198]
[1756453382821,3.17314197,209.9,209.85,19.10613447]
[1756453383020,19.10613447,209.88,209.82,19.10613447]
[1756453383321,3.18070061,209.87,209.86,0.03]
[1756453384336,17.45629462,209.87,209.86,0.03]
[1756453384524,43.94746963,209.87,209.86,0.03]
[1756453384904,13.59559401,209.84,209.83,0.03]
[1756453385099,43.26746963,209.84,209.83,0.03]
[1756453385303,39.97709894,209.84,209.83,0.03]
[1756453386919,13.59559401,209.8,209.79,0.2]
[1756453387107,35.88242909,209.8,209.79,0.2]
[1756453387722,40.64887332,209.8,209.79,0.2]
[1756453388028,35.88242909,209.8,209.79,0.2]
[1756453388228,16.77629462,209.8,209.79,0.2]
[1756453388924,35.88242909,209.8,209.79,0.2]
[1756453389513,7.94960231,209.89,209.79,19.90613447]
[1756453389514,3.98236875,209.86,209.79,19.90613447]
[1756453389712,32.70172848,209.85,209.79,24.6728059]
[1756453389920,3.18488316,209.84,209.79,24.6728059]
[1756453390116,3.18488316,209.85,209.8,0.6]
[1756453390518,19.10613447,209.85,209.8,0.6]
[1756453390719,3.18488316,209.84,209.8,0.6]
[1756453390917,3.18488316,209.84,209.79,24.07270893]
[1756453391120,3.18488316,209.84,209.79,24.67270893]
[1756453391412,22.29101763,209.84,209.79,5.56657446]
[1756453391612,3.18488316,209.83,209.79,5.56657446]
[1756453392428,3.18488316,209.83,209.79,30.96657446]
[1756453393029,3.18488316,209.83,209.79,31.56657446]
[1756453393331,32.70172848,209.85,209.79,31.56657446]
[1756453393512,22.29101763,209.84,209.79,0.2]
[1756453393713,3.18488316,209.83,209.79,0.2]
[1756453394115,3.18488316,209.83,209.79,4.96663497]
[1756453394639,3.86488316,209.84,209.79,4.96663497]
[1756453395833,3.98236875,209.91,209.83,19.10613447]
[1756453396010,3.1875104,209.93,209.9,19.10613447]
[1756453396329,3.1875104,209.97,209.92,19.10613447]
[1756453396537,13.59559401,209.96,209.91,0.6]
[1756453396722,3.1875104,209.95,209.91,19.70613447]
[1756453397034,0.06,210.01,209.94,19.10613447]
[1756453397236,0.06,210.01,209.92,0.6]
[1756453397237,3.24932811,210.01,209.96,19.10613447]
[1756453397733,13.65559401,210.01,209.96,23.86875705]
[1756453397934,3.18932811,210.0,209.96,23.86875705]
[1756453398815,3.18932811,210.0,209.96,4.76262258]
[1756453399017,3.18932811,210.0,209.96,23.86875705]
[1756453399734,3.18932811,210.0,209.96,19.10613447]
[1756453400437,3.86932811,210.0,209.96,19.10613447]
[1756453400947,3.18932811,210.0,209.96,19.10613447]